bitfinex-derivatives/quotes_ETHF0:USTF0_20250316
["timestamp","ask_amount","ask_price","bid_price","bid_amount"]
[1742111505455,7.53248365,1926.3,1926.2,1.32040009]
[1742111505654,4.32468365,1926.3,1926.2,1.32040009]
[1742111505964,3.45738285,1926.3,1926.2,1.32040009]
[1742111512864,2.49303,1926.3,1926.2,1.32040009]
[1742111514363,1.03823,1926.3,1926.2,4.85869009]
[1742111514865,1.03823,1926.3,1926.2,8.15669009]
[1742111515667,1.03823,1926.4,1926.3,1.03818]
[1742111515860,1.03823,1926.4,1926.3,5.60298]
[1742111516163,1.03823,1926.4,1926.3,8.10298]
[1742111519764,2.39817,1926.5,1926.4,1.03818]
[1742111519966,2.39817,1926.5,1926.4,3.16388]
[1742111520163,2.39817,1926.5,1926.4,5.66388]
[1742111521366,1.03812,1926.6,1926.5,1.03807]
[1742111521570,2.39812,1926.6,1926.5,5.75317]
[1742111524670,2.39812,1926.6,1926.5,4.7151]
[1742111526366,2.39812,1926.6,1926.5,3.297]
[1742111526666,2.39812,1926.6,1926.5,4.7503]
[1742111527666,2.39812,1926.6,1926.5,1.4533]
[1742111529377,1.03813,1926.5,1926.4,1.74576]
[1742111529573,3.05123,1926.5,1926.4,2.0942]
[1742111529769,3.77433,1926.5,1926.4,2.0942]
[1742111530075,1.03818,1926.4,1926.3,3.2078]
[1742111530277,2.35018,1926.4,1926.3,4.5944]
[1742111530776,2.35018,1926.4,1926.3,1.3866]
[1742111531774,2.35018,1926.4,1926.3,2.42483]
[1742111534178,2.35018,1926.4,1926.3,1.3866]
[1742111535578,1.03823,1926.3,1926.2,4.99689009]
[1742111535876,1.03829,1926.2,1926.1,3.2078]
[1742111536275,1.03829,1926.2,1925.9,3.31103103]
[1742111536276,1.0384,1926.0,1925.9,3.31103103]
[1742111536480,1.0384,1926.0,1925.9,0.01403103]
[1742111537285,1.755,1926.0,1925.9,0.01403103]
[1742111539283,2.465,1926.0,1925.9,0.01403103]
[1742111547192,1.0385,1925.8,1925.7,3.22251198]
[1742111549589,1.0385,1925.8,1925.7,5.32881198]
[1742111552297,1.0385,1925.8,1925.7,6.04641198]
[1742111555795,1.0385,1925.8,1925.7,7.08497198]
[1742111556002,2.40062746,1925.9,1925.8,1.0385]
[1742111556306,1.03844,1926.0,1925.9,1.03845]
[1742111556503,1.03844,1926.0,1925.9,2.36605]
[1742111557304,1.03844,1926.0,1925.9,5.57385]
[1742111557809,1.04615746,1926.1,1926.0,1.0384]
[1742111558003,0.00777746,1926.1,1926.0,1.7218]
[1742111558199,0.00777746,1926.1,1926.0,5.5494]
[1742111559808,1.04611746,1926.1,1926.0,5.5494]
[1742111560403,0.00777746,1926.1,1926.0,5.5494]
[1742111562105,0.00777746,1926.1,1926.0,3.0494]
[1742111563116,0.00777746,1926.1,1926.0,3.7568]
[1742111563714,2.48141746,1926.1,1926.0,3.7568]
[1742111565606,2.48141746,1926.1,1926.0,7.0538]
[1742111566811,2.48141746,1926.1,1926.0,3.0494]
[1742111567115,2.48141746,1926.1,1926.0,5.308]
[1742111567317,2.48141746,1926.1,1926.0,6.3464]
[1742111569813,3.2078,1927.4,1926.2,2.59569]
[1742111570017,5.80154,1927.7,1927.0,5.80243]
[1742111570217,4.17388973,1927.7,1927.4,1.03762]
[1742111570413,4.17388973,1927.7,1927.1,8.74819]
[1742111570414,2.00359973,1927.7,1927.6,1.03753]
[1742111570711,5.80128,1927.9,1927.2,3.2078]
[1742111570712,1.03754,1927.6,1927.2,3.2078]
[1742111571018,1.03758,1927.6,1927.5,0.00777746]
[1742111573216,2.39448,1927.6,1927.5,0.00777746]
[1742111573921,1.03753,1927.6,1927.5,1.04534746]
[1742111574119,2.41973,1927.6,1927.5,1.04536746]
[1742111574524,2.41973,1927.6,1927.5,0.00777746]
[1742111575526,2.41973,1927.6,1927.5,1.04536746]
[1742111575727,2.41973,1927.6,1927.5,0.00777746]
[1742111596338,2.41973,1927.6,1927.5,1.04536746]
[1742111596536,2.41973,1927.6,1927.5,2.35806746]
[1742111597336,2.41973,1927.6,1927.5,1.32047746]
[1742111597645,2.41973,1927.6,1927.5,2.35806746]
[1742111599539,4.24532,1927.7,1927.6,1.03753]
[1742111599742,4.24532,1927.7,1927.6,2.48683]
[1742111600831,4.24532,1927.7,1927.6,3.18363]
[1742111601038,5.58362,1927.7,1927.6,3.18363]
[1742111601235,2.37582,1927.7,1927.6,3.18363]
[1742111613563,1.03752,1927.7,1927.6,3.18363]
[1742111616760,1.37537746,1927.8,1927.7,1.03748]
[1742111616961,0.00777746,1927.8,1927.7,3.13288]
[1742111617163,0.00777746,1927.8,1927.7,6.43588]
[1742111617961,4.6506,1927.9,1927.8,1.03743]
[1742111617962,3.2078,1927.9,1927.8,1.03743]
[1742111618267,1.72372,1928.3,1928.2,1.03721]
[1742111618572,3.16652,1928.3,1928.2,1.03721]
[1742111618964,3.16652,1928.3,1928.2,2.46621]
[1742111619675,3.16652,1928.3,1928.0,7.55106]
[1742111619676,1.03726,1928.1,1928.0,7.55106]
[1742111619867,1.03726,1928.1,1928.0,9.00746]
[1742111620769,1.73906,1928.1,1928.0,9.00746]
[1742111623170,1.73906,1928.1,1928.0,5.79666]
[1742111630784,1.73906,1928.1,1928.0,3.303]
[1742111630985,1.73906,1928.1,1928.0,4.34032]
[1742111631188,1.73906,1928.1,1928.0,1.03732]
[1742111632483,1.03732,1928.0,1927.9,5.71582]
[1742111632677,2.42932,1928.0,1927.9,5.71582]
[1742111640386,2.42932,1928.0,1927.9,4.33132]
[1742111640585,2.42932,1928.0,1927.9,2.42652]
[1742111640779,1.03737,1927.9,1927.8,7.5392]
[1742111640991,1.03737,1927.9,1927.8,5.6344]
[1742111640992,3.13037,1927.9,1927.8,5.6344]
[1742111642781,3.13037,1927.9,1927.8,4.24523]
[1742111642982,3.13037,1927.9,1927.8,3.2078]
[1742111643192,3.13037,1927.9,1927.8,4.24523]
[1742111643692,3.13037,1927.9,1927.8,5.62233]
[1742111644285,2.40417,1927.9,1927.8,5.62233]
[1742111646388,2.40417,1927.9,1927.8,2.41453]
[1742111650189,2.40417,1927.9,1927.8,1.3771]
[1742111651090,2.40417,1927.9,1927.8,2.41453]
[1742111651293,1.03743,1927.8,1927.7,4.33147]
[1742111651496,3.15563,1927.8,1927.7,5.78227]
[1742111654787,3.15563,1927.8,1927.7,2.48827]
[1742111654989,3.15563,1927.8,1927.7,1.4508]
[1742111655189,3.15563,1927.8,1927.7,2.48828]
[1742111655496,3.15563,1927.8,1927.7,1.4508]
[1742111655797,3.15563,1927.8,1927.7,2.48828]
[1742111656395,3.15563,1927.8,1927.7,1.4508]
[1742111656797,1.03748,1927.7,1927.6,8.2302]
[1742111656995,2.41378,1927.7,1927.6,6.2916]
[1742111657201,2.41378,1927.7,1927.6,9.5856]
[1742111657498,3.08598,1927.7,1927.6,9.5856]
[1742111659302,3.08598,1927.7,1927.6,8.8947]
[1742111660101,3.08598,1927.7,1927.6,7.8572]
[1742111660300,3.08598,1927.7,1927.6,4.5632]
[1742111660894,3.08598,1927.7,1927.6,5.60073]
[1742111662893,3.08598,1927.7,1927.6,4.5632]
[1742111663098,3.08598,1927.7,1927.6,5.60073]
[1742111665103,2.41378,1927.7,1927.6,5.60073]
[1742111667701,1.03744,1927.8,1927.7,1.03748]
[1742111667899,2.44104,1927.8,1927.7,3.81048]
[1742111668803,1.4036,1927.8,1927.7,3.81048]
[1742111669010,2.44103,1927.8,1927.7,3.81048]
[1742111669310,1.4036,1927.8,1927.7,3.81048]
[1742111670009,2.44103,1927.8,1927.7,3.81048]
[1742111674809,2.44103,1927.8,1927.7,7.01828]
[1742111675915,1.4036,1927.8,1927.7,7.01828]
[1742111677513,2.44103,1927.8,1927.7,7.01828]
[1742111679608,2.44103,1927.8,1927.7,6.32468]
[1742111683115,2.44103,1927.8,1927.7,3.11688]
[1742111683314,2.44103,1927.8,1927.7,6.32468]
[1742111684018,2.44103,1927.8,1927.7,4.24528]
[1742111684207,2.44103,1927.8,1927.7,3.2078]
[1742111687011,2.44103,1927.8,1927.7,4.24528]
[1742111688420,2.44103,1927.8,1927.7,3.2078]
[1742111689421,2.44103,1927.8,1927.7,4.24528]
[1742111693819,2.44103,1927.8,1927.7,3.2078]
[1742111694015,2.44103,1927.8,1927.7,4.24528]
[1742111694422,2.44103,1927.8,1927.7,3.2078]
[1742111695122,2.44103,1927.8,1927.7,4.24528]
[1742111698026,2.44103,1927.8,1927.7,3.2078]
[1742111698223,1.03753,1927.6,1927.5,4.25316746]
[1742111698420,1.03753,1927.6,1927.5,5.66916746]
[1742111698822,2.47653,1927.6,1927.5,5.66916746]
[1742111705828,2.47653,1927.6,1927.5,4.63157746]
[1742111706031,2.47653,1927.6,1927.5,5.66916746]
[1742111708331,2.47653,1927.6,1927.5,1.04536746]
[1742111708536,2.47653,1927.6,1927.5,0.00777746]
[1742111708831,2.47653,1927.6,1927.5,1.41947746]
[1742111711830,2.47653,1927.6,1927.5,1.41947746]
[1742111714132,2.47653,1927.6,1927.5,0.00777746]
[1742111718842,2.47653,1927.6,1927.5,1.44567746]
[1742111720131,2.47653,1927.6,1927.5,0.00777746]
[1742111720841,2.47653,1927.6,1927.5,1.42517746]
[1742111721737,2.47653,1927.6,1927.5,2.46276746]
[1742111732947,2.47653,1927.6,1927.5,2.46276746]
[1742111737649,2.47653,1927.6,1927.5,1.42517746]
[1742111737952,1.03763,1927.5,1927.4,1.03764]
[1742111738152,2.38083,1927.5,1927.4,1.03764]
[1742111741148,2.38083,1927.5,1927.4,2.47104]
[1742111747552,1.3432,1927.5,1927.4,2.47104]
[1742111747853,2.38079,1927.5,1927.4,2.47104]
[1742111751856,2.38079,1927.5,1927.4,1.03764]
[1742111752354,2.38079,1927.5,1927.4,2.42544]
[1742111756653,1.3432,1927.5,1927.4,2.42544]
[1742111756853,2.38079,1927.5,1927.4,2.42544]
[1742111757756,1.3432,1927.5,1927.4,2.42544]
[1742111759760,2.38079,1927.5,1927.4,2.42544]
[1742111761563,1.3432,1927.5,1927.4,2.42544]
[1742111776967,2.38079,1927.5,1927.4,2.42544]
[1742111779873,1.3432,1927.5,1927.4,2.42544]
[1742111780277,2.0178,1927.5,1927.4,2.42544]
[1742111782779,1.3432,1927.5,1927.4,2.42544]
[1742111783481,1.3432,1927.5,1927.4,3.09494243]
[1742111785280,1.3432,1927.5,1927.4,3.09494243]
[1742111786173,1.3432,1927.5,1927.4,2.42544]
[1742111788877,1.4369,1927.7,1927.6,1.03753]
[1742111789083,1.4369,1927.7,1927.6,4.33053]
[1742111789579,1.4369,1927.7,1927.6,5.70013]
[1742111792387,2.7812,1927.7,1927.6,5.70013]
[1742111793192,3.81868,1927.7,1927.6,5.70013]
[1742111794587,1.03759,1927.6,1927.5,1.03755]
[1742111794789,1.03759,1927.6,1927.5,4.33055]
[1742111794790,2.39789,1927.6,1927.5,4.33055]
[1742111795883,2.39789,1927.6,1927.5,1.03755]
[1742111809300,2.39789,1927.6,1927.5,2.47645]
[1742111809800,2.39789,1927.6,1927.5,1.03755]
[1742111812796,2.39789,1927.6,1927.5,2.46765]
[1742111816699,2.39783,1927.6,1927.5,2.46765]
[1742111847227,1.3603,1927.6,1927.5,2.46765]
[1742111847426,2.39783,1927.6,1927.5,2.46765]
[1742111857431,1.03759,1927.5,1927.4,7.5384]
[1742111857632,3.17039,1927.5,1927.4,8.9278]
[1742111864633,3.17039,1927.5,1927.4,5.72]
[1742111878046,1.03764,1927.4,1927.3,4.25322746]
[1742111878248,3.19284,1927.4,1927.3,8.89612746]
[1742111879544,3.19284,1927.4,1927.1,7.53659]
[1742111879545,1.03775,1927.2,1927.1,7.53659]
[1742111879741,1.03775,1927.2,1927.1,8.88849]
[1742111880131,2.46635,1927.2,1927.1,8.88849]
[1742111880335,2.46635,1927.2,1927.1,5.59749]
[1742111880532,2.46635,1927.2,1927.1,5.5975]
[1742111881248,2.46635,1927.2,1927.1,4.5597]
[1742111881544,2.46635,1927.2,1927.1,5.5975]
[1742111881745,2.46635,1927.2,1927.1,4.5597]
[1742111882533,2.46635,1927.2,1927.1,5.5975]
[1742111883139,2.46635,1927.2,1927.1,3.2078]
[1742111884852,2.46635,1927.2,1927.1,4.5549]
[1742111888539,2.46635,1927.2,1927.1,5.5927]
[1742111889154,2.46635,1927.2,1927.1,7.0332]
[1742111891357,2.46635,1927.2,1927.1,6.3177]
[1742111891851,2.46635,1927.2,1927.1,5.2799]
[1742111892357,2.46635,1927.2,1927.1,6.3177]
[1742111893958,2.46635,1927.2,1927.1,5.2799]
[1742111894559,2.46635,1927.2,1927.1,4.5549]
[1742111897759,1.0378,1927.1,1927.0,0.00777746]
[1742111897962,1.03786,1927.0,1926.9,1.4062]
[1742111898262,1.03796,1926.9,1926.8,1.03791]
[1742111898557,2.49406,1926.9,1926.8,1.03791]
[1742111899663,7.2588,1926.9,1926.2,3.2078]
[1742111899848,1.03823,1926.4,1926.3,1.0382]
[1742111900050,1.03805,1926.7,1926.6,1.03803]
[1742111900454,2.39861,1926.8,1926.7,1.03802]
[1742111901958,2.39861,1926.8,1926.7,1.74232]
[1742111903852,1.3606,1926.8,1926.3,3.2078]
[1742111904052,1.3606,1926.8,1926.2,1.3887]
[1742111904053,1.03808,1926.6,1926.2,1.3887]
[1742111904258,2.59505,1926.7,1926.5,3.2078]
[1742111904559,1.03817,1926.5,1926.4,1.03814]
[1742111904953,1.03812,1926.6,1926.5,1.0381]
[1742111905666,1.03805,1926.7,1926.6,1.03802]
[1742111905865,1.03805,1926.7,1926.6,2.41692]
[1742111908966,1.038,1926.8,1926.7,1.03797]
[1742111909161,4.24575,1926.9,1926.8,1.03796]
[1742111912769,1.03802,1926.8,1926.7,1.03797]
[1742111916371,1.03802,1926.7,1926.6,2.41695]
[1742111916568,1.03802,1926.7,1926.6,0.7051]
[1742111916868,1.03802,1926.7,1926.6,3.292]
[1742111917068,1.03807,1926.6,1926.5,1.69519]
[1742111917268,1.03813,1926.5,1926.4,3.2078]
[1742111917466,1.03829,1926.3,1926.2,7.54906]
[1742111917662,2.4259,1926.4,1926.3,1.03823]
[1742111918167,2.4259,1926.4,1926.3,2.39523]
[1742111918371,2.4259,1926.4,1926.3,3.05493]
[1742111920377,2.4259,1926.4,1926.3,2.39523]
[1742111922473,2.42588,1926.4,1926.3,2.39523]
[1742111923681,1.03817,1926.5,1926.4,1.03813]
[1742111923879,2.43357,1926.5,1926.4,1.76273]
[1742111924083,1.03812,1926.6,1926.5,1.03813]
[1742111924383,2.36682,1926.6,1926.5,3.15713]
[1742111931587,2.36682,1926.6,1926.5,2.43393]
[1742111933288,2.36682,1926.6,1926.5,5.73093]
[1742111944599,1.3287,1926.6,1926.5,5.73093]
[1742111948606,1.3287,1926.6,1926.5,8.93873]
[1742111953001,1.3503,1926.9,1926.8,1.03796]
[1742111953310,2.38821,1926.9,1926.8,1.03796]
[1742111954195,2.38821,1926.9,1926.6,5.90551]
[1742111954196,1.03807,1926.7,1926.6,1.03803]
[1742111954706,1.03807,1926.6,1926.5,1.03809]
[1742111954905,1.75047,1926.6,1926.5,2.38549]
[1742111955105,1.75047,1926.6,1926.5,5.59329]
[1742111956405,2.41307,1926.6,1926.5,5.59329]
[1742111956608,2.41307,1926.6,1926.5,3.2078]
[1742111956805,2.41307,1926.6,1926.5,6.5018]
[1742111958498,2.41307,1926.6,1926.3,4.24602]
[1742111958499,1.03818,1926.4,1926.3,4.24602]
[1742111958699,1.03818,1926.4,1926.3,5.70302]
[1742111958905,2.40137,1926.5,1926.4,1.03818]
[1742111959203,2.40137,1926.5,1926.4,2.49518]
[1742111967008,1.3632,1926.5,1926.4,2.49518]
[1742111967309,1.3632,1926.5,1926.4,3.86378]
[1742111969712,1.3632,1926.5,1926.4,7.07158]
[1742111984315,0.6623,1926.7,1926.6,1.03807]
[1742111984515,2.1028,1926.7,1926.6,4.33007]
[1742111984719,2.1028,1926.7,1926.6,5.64707]
[1742111993128,3.14082,1926.7,1926.6,5.64707]
[1742111993320,2.1028,1926.7,1926.6,5.64707]
[1742111993927,3.14082,1926.7,1926.6,5.64707]
[1742111994117,2.1028,1926.7,1926.6,5.64707]
[1742111994319,3.14082,1926.7,1926.6,5.64707]
[1742111995630,2.1028,1926.7,1926.6,5.64707]
[1742111998331,2.1028,1926.7,1926.6,6.35807]
[1742111998720,0.96892013,1926.9,1926.6,5.32]
[1742111999027,1.73659,1927.0,1926.9,1.03791]
[1742112000629,1.73659,1927.0,1926.9,4.32991]
[1742112002425,3.17989,1927.0,1926.9,4.32991]
[1742112003936,2.142,1927.0,1926.9,4.32991]
[1742112005227,2.142,1927.0,1926.9,1.03791]
[1742112005629,2.142,1927.0,1926.7,3.2078]
[1742112005833,1.03796,1926.8,1926.7,4.5406]
[1742112006143,1.03807,1926.7,1926.6,1.03805]
[1742112006338,3.11037,1926.7,1926.6,1.03805]
[1742112006533,3.11037,1926.7,1926.6,2.40545]
[1742112008640,1.3664,1926.7,1926.6,2.40545]
[1742112008833,0.7097,1926.8,1926.7,1.03802]
[1742112009139,1.3431,1926.9,1926.8,1.03796]
[1742112009335,1.3431,1926.9,1926.8,2.40536]
[1742112009740,1.3431,1926.9,1926.8,5.70036]
[1742112010837,2.38101,1926.9,1926.8,5.70036]
[1742112011137,1.3431,1926.9,1926.8,5.70036]
[1742112012135,1.3431,1926.9,1926.8,6.37966]
[1742112018343,1.03777,1927.2,1927.1,1.03775]
[1742112018538,3.43654802,1927.2,1927.1,1.03775]
[1742112018843,2.46707,1927.2,1927.1,1.03775]
[1742112019847,1.4293,1927.2,1927.1,1.03775]
[1742112020032,1.4293,1927.2,1927.1,1.73445]
[1742112021442,1.4293,1927.2,1927.1,5.02645]
[1742112024953,1.4293,1927.2,1927.1,4.32975]
[1742112025248,1.4293,1927.2,1927.1,5.74525]
[1742112025437,2.46705,1927.2,1927.1,5.74525]
[1742112025642,2.46705,1927.2,1927.1,1.03775]
[1742112026038,1.03786,1927.0,1926.9,4.2457]
[1742112026544,1.03786,1927.0,1926.9,1.0379]
[1742112026849,2.41846,1927.0,1926.9,2.4534]
[1742112028751,1.3806,1927.0,1926.9,2.4534]
[1742112029255,2.8256,1927.0,1926.9,2.4534]
[1742112029454,3.86346,1927.0,1926.9,2.4534]
[1742112029654,2.8256,1927.0,1926.9,2.4534]
[1742112030656,3.86346,1927.0,1926.9,2.4534]
[1742112031049,2.8256,1927.0,1926.9,2.4534]
[1742112033849,3.86346,1927.0,1926.9,2.4534]
[1742112039467,2.8256,1927.0,1926.9,2.4534]
[1742112039767,3.86346,1927.0,1926.9,2.4534]
[1742112039965,2.8256,1927.0,1926.9,2.4534]
[1742112041064,3.86346,1927.0,1926.9,2.4534]
[1742112041675,2.8256,1927.0,1926.9,2.4534]
[1742112043364,3.86346,1927.0,1926.9,2.4534]
[1742112045862,3.86346,1927.0,1926.9,1.0379]
[1742112052669,3.86346,1927.0,1926.9,2.3974]
[1742112052875,1.03796,1926.8,1926.7,1.03796]
[1742112053069,1.4481,1926.9,1926.8,1.03796]
[1742112053263,2.48606,1926.9,1926.8,1.03796]
[1742112056175,2.48606,1926.9,1926.8,1.75766]
[1742112057967,2.48606,1926.9,1926.8,1.03796]
[1742112058975,2.48606,1926.9,1926.8,2.42646]
[1742112063778,1.03807,1926.7,1926.6,1.03802]
[1742112064073,1.03807,1926.7,1926.6,2.46842]
[1742112064274,3.19257,1926.7,1926.6,2.46842]
[1742112065173,3.19257,1926.7,1926.6,1.4304]
[1742112065477,1.03813,1926.5,1926.4,1.75254]
[1742112066080,1.73543,1926.5,1926.4,1.75254]
[1742112066775,1.73543,1926.5,1926.4,3.13564]
[1742112071670,1.73543,1926.5,1926.4,1.3831]
[1742112071868,3.1973,1926.5,1925.9,5.80383]
[1742112072068,1.03832,1926.2,1926.1,2.48548]
[1742112072875,1.76372,1926.2,1926.1,2.48548]
[1742112080879,3.21557746,1926.4,1926.3,1.03823]
[1742112081278,0.00777746,1926.4,1926.3,1.03823]
[1742112081473,0.00777746,1926.4,1926.3,2.40163]
[1742112082474,3.2078,1926.7,1926.6,1.03807]
[1742112083490,3.2078,1926.7,1926.6,1.70957]
[1742112085392,3.2078,1926.7,1926.6,3.04247]
[1742112085593,3.2078,1926.7,1926.6,3.73827]
[1742112089494,4.5512,1926.7,1926.6,3.73827]
[1742112090193,2.38142,1926.7,1926.6,3.73827]
[1742112090401,2.38142,1926.7,1926.6,3.06677]
[1742112090601,3.77742,1926.7,1926.6,3.06677]
[1742112091503,2.7394,1926.7,1926.6,3.06677]
[1742112093003,3.77742,1926.7,1926.6,3.06677]
[1742112093204,2.7394,1926.7,1926.6,3.06677]
[1742112093710,2.044,1926.7,1926.6,3.06677]
[1742112095310,3.08202,1926.7,1926.6,3.06677]
[1742112095610,2.044,1926.7,1926.6,3.06677]
[1742112099114,1.3434,1926.7,1926.6,3.06677]
[1742112099318,0.00777746,1926.8,1926.7,1.03802]
[1742112099615,1.32427746,1926.8,1926.7,2.47922]
[1742112099816,1.32427746,1926.8,1926.7,3.19662]
[1742112103017,0.00777746,1926.8,1926.7,3.19662]
[1742112103219,0.6967,1927.1,1927.0,1.03786]
[1742112103721,2.1216,1927.1,1927.0,1.03786]
[1742112103912,2.1216,1927.1,1927.0,2.37396]
[1742112104114,4.93463,1927.3,1927.2,1.03775]
[1742112104310,3.0575,1927.3,1927.2,1.03775]
[1742112104819,5.2276,1927.3,1927.2,1.03775]
[1742112105033,6.2653,1927.3,1927.2,1.03775]
[1742112105620,2.0198,1927.3,1927.2,1.03775]
[1742112105821,2.0198,1927.3,1927.2,1.74485]
[1742112106721,1.3307,1927.3,1927.2,1.74485]
[1742112106923,0.68337746,1927.4,1927.3,1.0377]
[1742112107222,2.01367746,1927.4,1927.3,2.4209]
[1742112112028,1.33807746,1927.4,1927.3,3.1104]
[1742112112330,0.00777746,1927.4,1927.3,3.1104]
[1742112112930,2.0887,1927.6,1927.5,1.03759]
[1742112113632,3.12623,1927.6,1927.5,1.03759]
[1742112113925,1.03759,1927.5,1927.4,2.4337]
[1742112114125,3.07249,1927.5,1927.4,2.4337]
[1742112114520,3.07249,1927.5,1927.4,1.0376]
[1742112114922,2.0349,1927.5,1927.4,1.0376]
[1742112115551,0.6584,1927.6,1927.5,1.03759]
[1742112115725,0.00777746,1927.7,1927.6,1.03753]
[1742112115925,1.37347746,1927.7,1927.6,2.37193]
[1742112116830,2.41095746,1927.7,1927.6,2.37193]
[1742112120230,1.37347746,1927.7,1927.6,2.37193]
[1742112120430,2.41095746,1927.7,1927.6,2.37193]
[1742112124031,1.04525746,1927.7,1927.6,2.37193]
[1742112124237,0.00777746,1927.7,1927.6,2.37193]
[1742112124537,1.43827746,1927.7,1927.6,2.37193]
[1742112124938,0.00777746,1927.7,1927.6,3.03943]
[1742112126337,1.37277746,1927.7,1927.6,3.03943]
[1742112132144,2.41025746,1927.7,1927.6,2.37193]
[1742112132738,1.37277746,1927.7,1927.6,2.37193]
[1742112132939,2.41025746,1927.7,1927.6,2.37193]
[1742112133340,1.37277746,1927.7,1927.6,2.37193]
[1742112134749,0.00777746,1927.7,1927.6,3.03993]
[1742112137551,5.55992,1928.0,1927.9,1.03737]
[1742112137744,4.5226,1928.0,1927.9,1.03737]
[1742112137944,5.55992,1928.0,1927.9,1.03737]
[1742112138140,4.5226,1928.0,1927.9,1.03737]
[1742112138347,4.5226,1928.0,1927.9,3.10767]
[1742112138551,5.55992,1928.0,1927.9,3.10767]
[1742112138754,5.55992,1928.0,1927.9,2.42697]
[1742112139856,4.5226,1928.0,1927.9,2.42697]
[1742112140682,1.3148,1928.0,1927.9,2.42697]
[1742112141076,0.68677746,1928.1,1928.0,1.03732]
[1742112141374,3.05463746,1928.1,1928.0,2.45352]
[1742112149158,3.05463746,1928.1,1928.0,1.4162]
[1742112149354,1.03737,1927.9,1927.8,0.00777746]
[1742112150058,3.13597,1927.9,1927.8,0.00777746]
[1742112150666,6.42697,1927.9,1927.8,0.00777746]
[1742112150959,7.39509528,1927.9,1927.8,0.00777746]
[1742112151151,8.26833113,1927.9,1927.8,0.00777746]
[1742112152466,8.26831613,1927.9,1927.8,0.00777746]
[1742112152765,7.39509528,1927.9,1927.8,0.00777746]
[1742112153267,7.39509528,1927.9,1927.8,1.39297746]
[1742112153567,7.39509528,1927.9,1927.8,0.00777746]
[1742112154859,4.10409528,1927.9,1927.8,0.00777746]
[1742112155357,3.13597,1927.9,1927.8,0.00777746]
[1742112155558,3.13597,1927.9,1927.8,1.39367746]
[1742112155961,3.13597,1927.9,1927.8,2.43110746]
[1742112156160,4.10409528,1927.9,1927.8,2.43110746]
[1742112163266,0.96812528,1927.9,1927.8,2.43110746]
[1742112163770,4.5609,1928.0,1927.9,1.03737]
[1742112163968,4.5609,1928.0,1927.9,3.86337]
[1742112164382,5.59822,1928.0,1927.9,3.86337]
[1742112165969,4.5609,1928.0,1927.9,3.86337]
[1742112166672,5.59822,1928.0,1927.9,3.86337]
[1742112167061,4.5609,1928.0,1927.9,3.86337]
[1742112167375,5.59822,1928.0,1927.9,3.86337]
[1742112169988,6.29172,1928.0,1927.9,3.13697]
[1742112170874,6.29172,1928.0,1927.9,2.46177]
[1742112171065,1.03737,1927.9,1927.8,0.00777746]
[1742112171270,2.41547,1927.9,1927.8,0.00777746]
[1742112172372,8.20747,1927.9,1927.8,0.00777746]
[1742112172678,1.03763,1927.5,1927.4,1.03759]
[1742112173376,2.46547,1927.6,1927.5,1.03759]
[1742112173570,1.75287,1927.6,1927.5,1.03759]
[1742112174879,3.17007,1927.6,1927.5,1.03759]
[1742112175071,1.03757,1927.6,1927.5,1.03759]
[1742112175481,6.63116529,1927.7,1927.6,1.03753]
[1742112175681,5.66251,1927.7,1927.6,1.03753]
[1742112176081,1.03753,1927.6,1927.5,2.39574]
[1742112176278,2.45473,1927.6,1927.5,2.39574]
[1742112176584,3.85733,1927.6,1927.5,2.39574]
[1742112184778,7.06513,1927.6,1927.5,2.39574]
[1742112185379,3.85733,1927.6,1927.5,2.39574]
[1742112185784,7.06513,1927.6,1927.5,2.39574]
[1742112187987,7.06513,1927.6,1927.5,1.3582]
[1742112190789,7.06513,1927.6,1927.5,2.39579]
[1742112192496,7.06513,1927.6,1927.5,1.3582]
[1742112192891,7.06513,1927.6,1927.5,2.39579]
[1742112193090,7.06513,1927.6,1927.5,1.3582]
[1742112193796,7.06513,1927.6,1927.5,2.39579]
[1742112195697,7.06513,1927.6,1927.5,1.3582]
[1742112195999,7.06513,1927.6,1927.5,2.39579]
[1742112201893,8.03309983,1927.6,1927.5,2.39579]
[1742112202995,5.59296983,1927.6,1927.5,2.39579]
[1742112203292,4.625,1927.6,1927.5,2.39579]
[1742112203697,3.2078,1927.6,1927.5,2.39579]
[1742112205206,3.45895983,1927.7,1927.6,1.03753]
[1742112205390,3.45895983,1927.7,1927.6,3.07163]
[1742112205595,2.42146983,1927.7,1927.6,3.07163]
[1742112205796,2.49098,1927.7,1927.6,3.07163]
[1742112206600,3.45894983,1927.7,1927.6,3.07163]
[1742112206900,2.42146983,1927.7,1927.6,3.07163]
[1742112207207,3.45894983,1927.7,1927.6,3.07163]
[1742112207602,2.42146983,1927.7,1927.6,3.07163]
[1742112207805,3.45894983,1927.7,1927.6,3.07163]
[1742112212908,2.42146983,1927.7,1927.6,3.07163]
[1742112213204,3.45894983,1927.7,1927.6,3.07163]
[1742112213702,2.42146983,1927.7,1927.6,3.07163]
[1742112213909,3.45894983,1927.7,1927.6,3.07163]
[1742112214508,2.42146983,1927.7,1927.6,3.07163]
[1742112214904,3.45894983,1927.7,1927.6,3.07163]
[1742112215112,2.42146983,1927.7,1927.6,3.07163]
[1742112215318,3.45894983,1927.7,1927.6,3.07163]
[1742112215518,2.49098,1927.7,1927.6,3.07163]
[1742112216017,3.45894983,1927.7,1927.6,3.07163]
[1742112217019,2.42146983,1927.7,1927.6,3.07163]
[1742112217514,3.45894983,1927.7,1927.6,3.07163]
[1742112218122,2.42146983,1927.7,1927.6,3.07163]
[1742112218312,1.4535,1927.7,1927.6,3.07163]
[1742112220019,2.49098,1927.7,1927.6,3.07163]